bitfinex/quotes_ETHUSD_20240721
["timestamp","ask_amount","ask_price","bid_price","bid_amount"]
[1721585312687,1.7,3440.8,3439.0,0.55]
[1721585312997,1.7,3438.9,3435.4,2.91086]
[1721585313199,2.90811,3438.7,3434.9,2.91121]
[1721585313400,2.3106,3439.2,3435.9,2.91041]
[1721585313401,0.0416578,3438.6,3435.9,2.91041]
[1721585313712,5.21733,3440.3,3436.8,2.3514]
[1721585313887,2.3106,3440.3,3437.6,2.90895]
[1721585314222,0.0416578,3440.2,3439.1,2.9077]
[1721585314424,0.0416578,3440.2,3438.2,3.0]
[1721585314724,2.3106,3441.3,3437.9,3.0]
[1721585314890,5.21653,3441.3,3439.5,2.90737]
[1721585315088,0.0413879,3441.2,3439.6,0.55]
[1721585315730,0.0413879,3441.2,3440.2,2.90678]
[1721585315889,1.7,3441.6,3440.3,0.55]
[1721585316090,2.3106,3442.0,3439.3,0.55]
[1721585316091,2.90584,3441.4,3439.3,0.55]
[1721585316286,1.7,3441.8,3439.3,0.55]
[1721585316287,0.04204331,3441.5,3439.4,2.90742]
[1721585316487,1.7,3441.3,3439.5,0.55]
[1721585316689,1.7,3441.3,3437.5,2.90907]
[1721585316690,2.90682,3440.2,3437.5,2.90905]
[1721585316988,0.04203977,3440.1,3436.7,2.90975]
[1721585317194,1.7,3439.8,3437.4,2.90914]
[1721585317432,1.7,3439.8,3436.3,2.91007]
[1721585317433,2.90742,3439.5,3437.8,2.90882]
[1721585317589,2.90741,3439.5,3436.1,2.91026]
[1721585317794,1.7,3439.8,3437.5,2.90907]
[1721585317795,2.94948008,3439.4,3437.5,2.90907]
[1721585317995,0.04199008,3439.4,3436.2,2.91015]
[1721585318229,2.3106,3440.1,3435.8,2.3514]
[1721585318230,2.3106,3440.1,3436.0,2.0726]
[1721585318526,0.04202737,3439.3,3436.4,2.90999]
[1721585318730,2.3106,3440.1,3436.6,2.90983]
[1721585318914,0.04202737,3439.2,3436.2,2.91016]
[1721585319118,1.7,3439.9,3436.3,2.91007]
[1721585319119,2.90709,3439.9,3436.3,2.91007]
[1721585319290,1.7,3439.7,3437.6,2.90896]
[1721585319491,2.90769,3439.2,3436.0,2.91028]
[1721585319728,2.90769,3439.2,3435.9,0.291041]
[1721585319729,2.90809,3438.7,3437.0,2.9095]
[1721585319894,2.90817,3438.6,3436.8,2.90966]
[1721585320093,2.90817,3438.6,3435.9,0.291041]
[1721585320094,2.9082,3438.6,3436.7,2.90975]
[1721585320429,2.90743,3439.5,3435.2,0.45603757]
[1721585320430,2.4092,3438.4,3435.2,0.45603757]
[1721585320729,0.04180725,3438.5,3435.2,0.45603757]
[1721585320941,0.04168292,3438.3,3435.6,2.91063]
[1721585321106,2.90813,3438.7,3435.3,0.45614641]
[1721585321310,2.90853,3438.2,3436.1,2.91024]
[1721585321629,2.90826,3438.5,3436.7,2.90975]
[1721585321630,0.45613577,3438.5,3436.7,2.90975]
[1721585321846,0.04168292,3438.1,3435.4,2.91078]
[1721585322050,2.90835,3438.4,3435.0,0.45608124]
[1721585322207,2.4092,3437.7,3435.7,2.9106]
[1721585322535,2.4092,3437.7,3435.0,0.45608124]
[1721585322536,2.9097,3436.8,3435.2,2.91101]
[1721585322689,2.9091,3437.5,3435.7,2.91057]
[1721585322890,2.4092,3437.7,3434.1,2.91196]
[1721585323091,0.04168292,3437.4,3434.2,2.91187]
[1721585323332,2.90903,3437.6,3434.3,0.2886]
[1721585323538,0.04168292,3437.3,3434.7,0.2886]
[1721585323738,2.4092,3437.7,3435.5,0.2886]
[1721585323908,2.4092,3437.7,3433.9,2.915]
[1721585323909,0.04168292,3437.2,3434.2,0.29474501]
[1721585324095,2.91014,3436.3,3434.2,2.91182]
[1721585324433,2.4092,3437.7,3434.3,2.91178]
[1721585324434,2.91031,3436.1,3434.3,2.91178]
[1721585324640,0.04140928,3436.2,3434.2,2.3657]
[1721585324791,0.35,3437.4,3434.3,2.91179]
[1721585324996,0.35,3437.4,3434.2,2.3657]
[1721585324997,0.04140928,3437.3,3436.8,2.90966]
[1721585325228,2.90846,3438.3,3434.8,0.2886]
[1721585325451,0.45613577,3438.5,3437.1,2.90941]
[1721585325728,0.04140928,3438.2,3437.1,2.90938]
[1721585326030,2.90833,3438.4,3436.5,2.90991]
[1721585326334,2.86523183,3438.8,3436.5,2.90992]
[1721585326538,2.94963199,3438.3,3436.3,2.91005]
[1721585326740,2.90898,3437.7,3435.1,0.2886]
[1721585327055,4.1092,3438.1,3434.9,2.91126]
[1721585327244,4.1092,3438.1,3435.0,2.91119]
[1721585327245,0.04117644,3437.6,3435.0,2.91119]
[1721585327406,0.04117644,3437.6,3434.2,0.2886]
[1721585327407,2.90873,3438.0,3436.1,2.91026]
[1721585327606,0.04117467,3437.9,3435.7,2.91059]
[1721585327793,0.04117467,3437.9,3435.7,2.91058]
[1721585328142,0.04117467,3437.9,3435.6,2.91064]
[1721585328330,0.04117467,3437.9,3434.9,0.2886]
[1721585328534,2.90892,3437.7,3435.0,0.55]
[1721585328831,2.90892,3437.7,3434.9,0.2886]
[1721585328832,2.9097,3436.8,3435.2,2.91103]
[1721585329002,2.95028355,3437.6,3434.8,0.2886]
[1721585329003,2.90986,3436.6,3434.8,0.2886]
[1721585329200,0.04123332,3436.5,3433.6,0.2886]
[1721585329427,2.91083,3435.5,3433.4,2.91255]
[1721585329609,1.7,3435.9,3432.6,0.456242]
[1721585329610,2.9121,3434.0,3432.6,0.456242]
[1721585329820,2.4092,3435.3,3432.1,0.0564682]
[1721585330003,0.04122977,3433.9,3433.7,2.91229]
[1721585330211,2.4092,3435.3,3433.0,2.91287]
[1721585330426,2.4092,3435.3,3433.1,2.91281]
[1721585330427,2.91116,3435.1,3433.1,2.91281]
[1721585330695,0.04122977,3435.2,3432.3,0.2886]
[1721585330931,1.7,3434.7,3432.7,2.91313]
[1721585331147,1.7,3434.2,3432.1,0.0564682]
[1721585331303,5.82604,3435.2,3432.1,0.0564682]
[1721585331304,2.91293,3433.0,3432.1,0.0564682]
[1721585331521,4.09972911,3434.1,3432.1,0.0564682]
[1721585331699,0.02576913,3432.9,3432.2,2.91357]
[1721585331917,2.91213,3434.0,3432.1,0.0564682]
[1721585331918,2.91206,3434.0,3432.1,0.0564682]
[1721585332118,4.6125,3433.5,3432.1,0.0564682]
[1721585332355,1.7,3432.8,3429.6,0.0898877]
[1721585332587,2.91384,3431.9,3429.6,0.0898877]
[1721585332740,2.91317,3432.7,3429.6,0.0898877]
[1721585332741,1.74024332,3432.7,3431.7,0.04034123]
[1721585333059,2.915,3433.4,3431.7,0.04034123]
[1721585333060,2.91387,3431.9,3431.7,0.04034123]
[1721585333288,2.91345,3432.4,3429.8,2.91562]
[1721585333418,1.734,3432.5,3429.6,0.0898877]
[1721585333615,2.91404,3431.7,3429.6,0.0898877]
[1721585333927,2.91318,3432.7,3430.0,5.0057815]
[1721585333928,1.7,3431.1,3430.0,5.0057815]
[1721585334575,2.91478,3430.8,3430.0,5.0057815]
[1721585334713,1.7,3430.7,3430.0,4.99372269]
[1721585334913,3.434,3430.7,3430.0,4.70957726]
[1721585335116,3.434,3430.7,3429.6,0.0898877]
[1721585335117,1.7,3429.7,3429.6,0.0898877]
[1721585335325,1.7,3429.3,3428.2,0.1342708]
[1721585335571,1.734,3428.8,3428.2,0.1342708]
[1721585335772,4.615,3428.9,3428.2,0.1342708]
[1721585335773,1.734,3428.3,3428.2,0.1342708]
[1721585335930,0.82194694,3428.8,3428.2,0.1342708]
[1721585336459,1.7,3429.1,3426.9,0.008]
[1721585336460,0.8134,3428.6,3426.9,0.008]
[1721585336685,1.734,3428.0,3426.9,0.008]
[1721585336818,2.91767,3427.4,3426.9,0.008]
[1721585337023,41.04956064,3427.9,3426.6,2.80819559]
[1721585337024,0.07297471,3427.3,3426.6,2.76619559]
[1721585337325,0.07296934,3427.5,3426.6,2.76619559]
[1721585337637,0.07296934,3427.2,3426.6,2.76619559]
[1721585337872,40.976587,3427.1,3426.6,2.76619559]
[1721585338161,2.91813,3426.9,3426.6,2.76619559]
[1721585338361,41.04956963,3426.8,3426.6,0.26619559]
[1721585338547,41.04958661,3426.7,3426.6,0.26619559]
[1721585338715,24.09299961,3426.7,3423.8,2.92072]
[1721585338919,0.07299961,3426.7,3425.4,2.91935]
[1721585339120,0.07299961,3426.7,3425.7,2.91908]
[1721585339453,1.7,3428.4,3425.2,2.91953]
[1721585339651,1.7,3428.4,3425.9,2.91887]
[1721585339858,0.8134,3428.6,3425.3,2.65770747]
[1721585339859,0.03696479,3428.3,3425.3,2.65770747]
[1721585340166,0.03573908,3428.2,3428.1,2.91706]
[1721585340381,0.03573908,3428.2,3428.1,5.83412]
[1721585340583,2.91439,3431.3,3429.1,2.91619]
[1721585340782,2.91439,3431.3,3428.1,0.55]
[1721585340783,1.7,3431.8,3429.2,2.91612]
[1721585340784,0.29400707,3430.9,3429.2,2.91612]
[1721585340997,0.29400707,3430.9,3430.4,2.91503]
[1721585341196,0.07288125,3430.8,3428.2,2.3603]
[1721585341521,0.07288125,3430.8,3428.3,0.55]
[1721585341653,0.2918,3433.3,3428.3,0.55]
[1721585341654,2.91336,3432.5,3429.2,2.61791]
[1721585341854,6.34711,3432.8,3429.2,2.61791]
[1721585341855,0.07288858,3432.4,3430.8,2.9147]
[1721585342104,0.03574448,3432.4,3430.9,0.55]
[1721585342257,0.07286864,3432.3,3430.1,2.3603]
[1721585342460,1.7,3432.1,3430.2,0.55]
[1721585342815,1.7,3432.1,3430.7,2.91482]
[1721585342816,0.07288365,3432.0,3430.7,2.91482]
[1721585342966,0.07288365,3432.0,3430.2,0.55]
[1721585343159,0.07288365,3432.0,3430.0,3.0]
[1721585343160,1.7,3431.7,3430.0,2.91542]
[1721585343387,0.07288365,3432.0,3429.1,3.0]
[1721585343388,1.7,3430.9,3429.1,3.0]
[1721585343703,7.275,3432.4,3428.1,2.3603]
[1721585343704,0.10865353,3430.8,3428.8,2.91641]
[1721585343858,0.03574448,3430.8,3430.6,2.9149]
[1721585344062,1.7,3434.1,3430.6,5.2752]
[1721585344371,1.7,3434.1,3431.6,2.91405]
[1721585344603,0.29492762,3434.2,3431.4,2.9142]
[1721585344604,0.10697855,3434.0,3431.4,2.91425]
[1721585344901,1.7,3433.5,3430.6,2.3603]
[1721585345098,0.0341296,3434.0,3431.5,3.0]
[1721585345299,0.07282683,3434.1,3433.2,2.9127]
[1721585345509,0.07282683,3434.1,3431.6,3.46407]
[1721585345510,0.07282127,3434.9,3433.6,2.91238]
[1721585345736,0.07282127,3434.9,3433.3,0.55]
[1721585345997,1.7,3434.5,3432.0,2.91375]
[1721585346209,0.0728321,3434.4,3432.1,3.55]
[1721585346375,0.07281433,3435.1,3434.1,2.91195]
[1721585346706,4.36,3437.0,3434.0,5.8241]
[1721585346707,0.294936,3435.4,3434.0,5.8241]
[1721585346859,0.294936,3435.4,3432.7,3.02453635]
[1721585346860,0.07280358,3435.3,3433.0,2.91286]
[1721585347056,0.07279998,3435.6,3434.7,2.9114]
[1721585347299,0.03510108,3435.2,3433.6,2.91231]
[1721585347462,0.07279041,3436.6,3434.2,2.91184]
[1721585347663,1.7,3436.5,3434.3,3.55]
[1721585347875,1.7,3436.5,3433.2,2.91266]
[1721585347876,1.7,3435.9,3433.2,2.91266]
[1721585348093,0.07280178,3435.8,3434.4,2.91168]
[1721585348264,0.07278535,3435.7,3434.5,0.55]
[1721585348611,0.07278535,3435.7,3433.8,3.0]
[1721585348612,0.07278535,3435.7,3434.6,2.91151]
[1721585348824,0.07278726,3436.6,3434.8,2.91136]
[1721585348960,0.03510108,3436.5,3435.0,2.91118]
[1721585349166,4.60903,3437.6,3434.4,3.0]
[1721585349167,3.9821,3437.6,3434.4,3.0]
[1721585349361,1.7,3437.0,3435.4,2.91086]
[1721585349620,0.07277296,3436.9,3435.4,2.91086]
[1721585349765,0.07277296,3436.9,3435.5,0.55]
[1721585349766,0.03510108,3436.8,3435.5,0.55]
[1721585349965,0.03510108,3436.8,3434.3,5.40999]
[1721585349966,0.07276852,3436.7,3435.4,0.55]
[1721585350166,0.07276852,3436.7,3434.4,3.0]
[1721585350402,2.91088,3435.4,3433.4,2.9125]
[1721585350605,1.7,3435.1,3433.3,2.91259]
[1721585350766,1.7,3435.7,3433.2,2.4982]
[1721585350963,0.0728035,3436.1,3433.8,2.91221]
[1721585351205,2.90968,3436.8,3434.2,2.91187]
[1721585351206,0.07278741,3436.3,3434.2,2.91187]
[1721585351513,1.7,3436.8,3433.2,2.4982]
[1721585351514,0.07277342,3436.2,3433.2,2.4982]
[1721585351673,1.7,3435.9,3433.2,2.4982]
[1721585351876,0.07279229,3435.8,3434.5,2.91156]
[1721585352197,2.90999,3436.5,3433.2,2.4982]
[1721585352400,1.7,3436.1,3433.5,2.91245]
[1721585352623,1.7,3436.1,3433.2,2.4982]
[1721585352624,2.91087,3435.4,3433.2,2.4982]
[1721585352764,2.91031,3436.1,3433.5,2.91244]
[1721585352765,0.07280388,3435.6,3433.5,2.91244]
[1721585353100,0.07280388,3435.4,3433.2,2.4982]
[1721585353292,0.07278918,3436.1,3433.2,2.4982]
[1721585353493,0.03557229,3435.3,3433.2,2.4982]
[1721585353794,1.7,3436.3,3434.2,2.91187]
[1721585353795,0.0355384,3435.2,3434.2,2.91187]
[1721585354007,1.7,3436.3,3434.4,2.9117]
[1721585354008,0.07279208,3435.7,3434.4,2.9117]
[1721585354323,0.03614727,3435.6,3435.5,5.82156]
[1721585354672,2.2821,3438.6,3436.4,2.91001]
[1721585354673,1.7,3438.1,3436.4,2.91001]
[1721585354999,6.356374,3438.6,3435.5,3.46078]
[1721585355000,1.73621148,3438.0,3435.6,3.0]
[1721585355215,1.73621148,3438.0,3437.4,2.90912]
[1721585355216,0.03621148,3438.0,3437.4,2.90912]
[1721585355512,0.03621148,3438.0,3436.5,2.90991]
[1721585355513,0.07272857,3438.7,3437.1,2.9094]
[1721585355727,0.45603183,3438.8,3437.5,0.55]
[1721585355875,0.03621148,3438.6,3437.5,0.55]
[1721585356227,0.45597999,3439.3,3438.1,2.90857]
[1721585356370,0.10892736,3439.2,3437.5,0.55]
[1721585356576,2.90836,3438.4,3435.3,2.91092]
[1721585356873,0.03675675,3438.3,3437.0,2.90951]
[1721585357098,0.03675675,3438.3,3437.3,2.90924]
[1721585357302,1.7,3439.9,3437.6,2.90898]
[1721585357303,0.52873026,3439.3,3437.6,2.90898]
[1721585357505,0.52873026,3439.3,3437.3,2.90919]
[1721585357506,0.45601745,3439.3,3437.3,2.90919]
[1721585357717,2.90619,3441.0,3437.4,0.55]
[1721585357718,0.10879021,3439.2,3437.4,0.55]
[1721585357871,1.7,3438.7,3437.1,0.55]
[1721585358209,1.7,3438.7,3435.8,2.91051]
[1721585358210,2.9087,3438.0,3435.8,2.91051]
[1721585358411,0.10882041,3437.9,3435.1,2.4982]
[1721585358734,0.10882041,3437.9,3435.0,2.91117]
[1721585358735,2.90938,3437.2,3435.0,2.91117]
[1721585358932,1.7,3437.7,3435.0,2.91117]
[1721585358933,2.90898,3437.7,3435.4,2.91084]
[1721585359225,0.03607152,3437.6,3435.4,2.91085]
[1721585359375,0.07275027,3437.5,3434.1,2.4982]
[1721585359580,3.0,3438.8,3435.7,2.91059]
[1721585359581,0.07275565,3438.7,3435.7,2.91059]
[1721585359778,0.45598427,3438.9,3435.9,2.3316]
[1721585360012,2.90755,3439.4,3435.9,2.3316]
[1721585360013,0.03448405,3438.8,3437.6,2.90899]
[1721585360221,0.03448405,3438.8,3437.6,0.02433739]
[1721585360426,0.03448405,3438.8,3436.4,2.91001]
[1721585360427,1.73448405,3438.8,3436.4,2.91001]
[1721585360580,1.7,3438.3,3435.9,2.3316]
[1721585360776,1.7,3437.6,3434.8,2.3316]
[1721585361020,7.275,3438.9,3434.8,2.3316]
[1721585361021,1.80727013,3437.5,3434.8,2.3316]
[1721585361295,1.7,3436.3,3433.7,2.3316]
[1721585361477,2.91055,3435.8,3433.7,2.3316]
[1721585361679,0.07278306,3435.7,3433.7,2.3316]
[1721585361915,2.91146,3434.7,3433.4,0.00570077]
[1721585362215,2.9114,3434.8,3432.7,2.3316]
[1721585362417,1.7,3435.7,3432.7,2.3316]
[1721585362418,2.91172,3434.4,3432.7,2.3316]
[1721585362574,0.03304726,3434.3,3432.8,2.91306]
[1721585362779,0.03304726,3434.3,3432.7,2.3316]
[1721585362780,3.0,3435.7,3432.9,0.02456347]
[1721585363103,1.7,3436.7,3433.8,2.91218]
[1721585363326,1.7,3436.7,3432.9,0.23561635]
[1721585363327,0.03195066,3435.6,3434.6,2.9115]
[1721585363477,0.35,3436.3,3435.0,2.9112]
[1721585363788,2.90871,3438.0,3434.8,2.91136]
[1721585363987,2.3294,3438.5,3434.7,2.3316]
[1721585363988,2.90934,3437.2,3434.7,2.3316]
[1721585364188,0.0107488,3438.0,3434.9,2.91128]
[1721585364376,0.0107488,3438.0,3436.6,2.90984]
[1721585364581,0.0107488,3438.0,3436.7,0.55]
[1721585364582,0.08348226,3438.0,3436.7,0.55]
[1721585365087,0.0107488,3438.0,3436.7,0.55]
[1721585365317,0.0107488,3438.0,3436.5,3.45991]
[1721585365484,0.0107488,3438.0,3436.6,2.90985]
[1721585365684,0.0107488,3438.0,3436.7,0.574378]
[1721585365907,0.0107488,3438.0,3437.1,2.90941]
[1721585366109,0.0107488,3438.0,3436.8,0.02436422]
[1721585366110,0.0107488,3438.0,3437.6,2.90899]
[1721585366437,0.0107488,3438.0,3437.7,3.48320791]
[1721585366599,3.43618745,3439.5,3437.9,2.90875]
[1721585366600,0.45606164,3439.5,3437.9,2.90875]
[1721585366932,1.3156836,3440.7,3437.2,0.55]
[1721585366933,0.1502796,3440.7,3437.2,0.55]
[1721585367136,0.1502796,3440.7,3437.1,3.0]
[1721585367137,0.323,3439.7,3434.9,0.2918]
[1721585367305,0.323,3439.7,3435.2,0.2918]
[1721585367306,1.7,3438.5,3435.2,0.2918]
[1721585367628,1.7,3438.5,3434.9,0.30639428]
[1721585367629,2.90921,3437.4,3435.4,2.91086]
[1721585367780,2.90934,3437.2,3435.5,2.91076]
[1721585367982,2.90934,3437.2,3434.9,0.00569828]
[1721585367983,2.90959,3437.0,3434.9,0.00569828]
[1721585368186,2.9092,3437.4,3435.3,2.91094]
[1721585368495,3.0,3437.3,3434.9,0.00569828]
[1721585368695,0.0727552,3437.3,3435.3,2.91093]
[1721585368880,0.0727552,3437.3,3435.0,2.9112]
[1721585368881,2.90961,3436.9,3434.9,0.00569828]
[1721585369089,2.91072,3435.6,3434.9,0.00569828]
[1721585369308,2.90918,3437.4,3434.9,0.00569828]
[1721585369309,2.90987,3436.6,3434.9,0.00569828]
[1721585369645,2.98232916,3437.0,3434.9,0.00569828]
[1721585369821,2.90955,3437.0,3435.4,2.91086]
[1721585370047,3.23176,3437.9,3435.4,2.91086]
[1721585370048,1.7,3438.2,3435.4,0.02444713]
[1721585370188,2.90876,3437.9,3436.2,2.91017]
[1721585370388,2.90859,3438.1,3436.2,2.91017]
[1721585370592,2.915,3438.6,3436.2,2.91017]
[1721585370593,2.90831,3438.5,3436.3,2.482]
[1721585370788,3.23016,3439.8,3436.3,2.482]
[1721585370789,2.9079,3438.9,3437.2,2.90934]
[1721585371015,2.9079,3438.9,3436.3,2.482]
[1721585371016,0.45588228,3440.2,3437.3,0.02435279]
[1721585371219,0.45588228,3440.2,3437.5,2.482]
[1721585371522,2.90701,3440.0,3437.6,0.55]
[1721585371723,0.45588228,3440.2,3437.7,0.0243172]
[1721585371954,0.45588228,3440.2,3438.4,2.90828]
[1721585372139,0.45588228,3440.2,3437.6,0.55]
[1721585372140,0.45588228,3440.2,3438.5,0.57427185]
[1721585372349,0.1502796,3440.7,3439.5,2.90731]
[1721585372522,0.1502796,3440.7,3439.6,0.55]
[1721585372852,0.1502796,3440.7,3439.3,2.482]
[1721585372853,0.07267478,3440.6,3439.3,2.482]
[1721585373080,1.77267478,3440.6,3437.5,2.90904]
[1721585373217,1.77267478,3440.6,3437.1,3.0]
[1721585373218,1.7,3440.3,3437.1,3.0]
[1721585373413,0.1502796,3440.7,3435.7,2.482]
[1721585373414,2.915,3438.9,3435.7,2.482]
[1721585373744,2.90919,3437.4,3435.7,2.482]
[1721585374077,1.7,3438.1,3435.7,2.482]
[1721585374222,2.90876,3437.9,3435.7,2.482]
[1721585374417,0.07275231,3437.8,3435.7,2.482]
[1721585374617,0.03028222,3437.7,3435.7,2.482]
[1721585374844,2.90836,3438.4,3435.8,0.02439697]
[1721585375049,0.03028222,3438.3,3435.7,2.482]
[1721585375239,2.98081082,3438.7,3436.6,2.90981]
[1721585375552,2.98081082,3438.7,3435.7,2.482]
[1721585375553,0.03028222,3438.6,3436.7,0.02437068]
[1721585375758,0.03028222,3438.6,3437.2,2.482]
[1721585375927,0.03028222,3438.6,3436.4,2.90999]
[1721585376112,1.7,3439.2,3436.4,2.90999]
[1721585376317,2.93857222,3438.5,3436.0,2.482]
[1721585376517,2.90829,3438.5,3436.0,2.482]
[1721585376763,0.03028222,3438.4,3437.3,2.90923]
[1721585376925,0.03028222,3438.4,3436.3,2.91008]
[1721585376926,0.03028222,3438.4,3437.2,2.90933]
[1721585377253,2.90793,3438.9,3436.0,2.482]
[1721585377254,0.03028222,3438.3,3437.6,2.90899]
[1721585377454,3.0,3439.7,3437.4,2.90916]
[1721585377613,0.10299253,3439.6,3437.5,0.55]
[1721585378118,0.10299253,3439.6,3435.8,2.91051]
[1721585378119,2.90783,3439.0,3436.7,2.90971]
[1721585378327,2.90783,3439.0,3436.3,2.91008]
[1721585378328,2.90833,3438.4,3436.6,2.90982]
[1721585378519,2.90811,3438.7,3436.0,5.482]
[1721585378739,0.03028222,3438.3,3436.0,2.482]
[1721585379048,0.03028222,3438.2,3437.5,2.3023]
[1721585379264,21.62,3440.4,3437.5,2.326623]
[1721585379418,0.35,3440.0,3437.5,2.3023]
[1721585379615,0.03028222,3439.9,3437.6,0.57432009]
[1721585379813,0.03028222,3439.9,3439.0,2.9078]
[1721585380017,0.03028222,3439.9,3439.1,0.57426959]
[1721585380224,0.1502796,3440.7,3439.2,2.3023]
[1721585380433,0.1502796,3440.7,3439.6,2.90728]
[1721585380649,0.1502796,3440.7,3439.7,0.55]
[1721585380650,0.03038106,3440.6,3439.7,0.55]
[1721585381031,0.1502796,3440.7,3439.7,0.55]
[1721585381261,0.1502796,3440.7,3439.2,2.3023]
[1721585381262,0.07266769,3440.6,3439.2,2.3023]
[1721585381464,0.03076552,3440.6,3439.3,0.55]
[1721585381669,0.03076552,3440.6,3439.3,0.83523]
[1721585381832,0.03076552,3440.6,3440.5,2.90655]
[1721585382035,0.1502796,3440.7,3440.5,3.45655]
[1721585382342,0.1502796,3440.7,3440.6,3.45646]
[1721585382553,0.1502796,3440.7,3440.6,6.36292]
[1721585382999,0.1502796,3440.7,3440.6,0.55]
[1721585383137,0.1502796,3440.7,3440.5,0.55]
[1721585383860,0.1502796,3440.7,3439.4,2.90747]
[1721585384038,0.10303894,3440.6,3438.3,2.3023]
[1721585384239,2.90734,3439.6,3438.3,2.3023]
[1721585384571,2.90713,3439.9,3436.6,2.90984]
[1721585384572,0.10314722,3439.5,3436.7,2.3023]
[1721585384774,2.90766,3439.2,3437.3,2.90923]
[1721585384985,2.90766,3439.2,3436.7,2.3023]
[1721585384986,0.07271571,3439.1,3436.8,2.90959]
[1721585385202,3.01079252,3439.1,3436.7,2.3023]
[1721585385496,2.90858,3438.1,3436.7,2.3023]
[1721585385802,2.90833,3438.4,3436.7,2.3023]
[1721585385938,0.02996768,3438.0,3436.7,2.3023]
[1721585386137,2.90824,3438.5,3436.7,2.3023]
[1721585386589,0.10269141,3438.4,3436.7,2.3023]
[1721585387175,0.02996408,3438.4,3436.7,2.3023]
[1721585387375,0.02996408,3438.4,3436.8,0.02436242]
[1721585387540,0.02996408,3438.4,3436.7,2.3023]
[1721585387541,0.02996408,3438.4,3437.1,2.9094]
[1721585387870,0.02848254,3438.3,3437.0,2.90948]
[1721585388077,0.07271983,3438.8,3437.0,2.90948]
[1721585388234,0.07271983,3438.8,3436.7,2.3023]
[1721585388235,0.07271988,3439.0,3437.5,2.90904]
[1721585388447,2.907,3440.0,3436.7,5.21203]
[1721585388448,0.02848254,3438.9,3437.6,0.02434759]
[1721585388650,0.02848254,3438.9,3436.7,5.3023]
[1721585388651,2.90723,3439.7,3437.9,2.90874]
[1721585388858,2.93579254,3439.6,3438.0,0.55]
[1721585389059,0.02848254,3439.6,3438.2,2.90849]
[1721585389268,0.02848254,3439.6,3438.3,3.4584]
[1721585389598,0.1502796,3440.7,3436.7,2.3023]
[1721585389599,0.07269867,3439.5,3436.7,2.3023]
[1721585389764,2.90824,3438.6,3436.7,2.3023]
[1721585389954,2.9077,3439.2,3436.7,2.3023]
[1721585390149,0.02848254,3439.4,3437.6,2.909]
[1721585390150,2.90757,3439.3,3437.6,2.909]
[1721585390390,0.02848254,3439.1,3437.3,2.90923]
[1721585390592,0.0727122,3439.0,3436.7,2.3023]
[1721585390747,1.7,3440.0,3436.7,2.3023]
[1721585390748,2.90771,3439.2,3437.6,2.909]
[1721585390950,4.60699,3440.0,3437.6,2.909]
[1721585390951,2.90774,3439.1,3437.6,2.909]
[1721585391271,0.02848254,3439.0,3437.7,0.55]
[1721585391474,2.90794,3438.9,3437.7,0.55]
[1721585391674,0.07271409,3439.9,3436.9,2.90958]
[1721585391675,2.90814,3438.7,3436.9,2.90958]
[1721585391988,0.02848254,3438.6,3437.0,0.55]
[1721585392152,0.02848254,3438.6,3437.1,0.0243392]
[1721585392494,2.97952218,3440.2,3438.3,2.90837]
[1721585392697,2.90658,3440.5,3438.4,0.55]
[1721585392910,0.1502796,3440.7,3439.1,2.90772]
[1721585393053,0.02848254,3440.1,3439.2,3.45764]
[1721585393610,0.1502796,3440.7,3438.5,2.3023]
[1721585393611,0.07267786,3440.6,3438.5,2.3023]
[1721585393818,0.07267786,3440.6,3438.6,0.55]
[1721585394156,0.02858711,3440.5,3438.6,0.55]
[1721585394504,0.02858711,3440.5,3438.9,2.90789]
[1721585394708,0.1502796,3440.7,3438.6,0.55]
[1721585394709,0.02858711,3440.4,3439.3,2.90756]
[1721585394873,0.12886671,3440.7,3439.4,0.02425761]
[1721585395198,0.02763421,3440.6,3439.1,0.02423191]
[1721585395412,0.02763421,3440.6,3436.9,0.59292178]
[1721585395413,1.7,3439.7,3437.7,2.3023]
[1721585395701,2.90741,3439.5,3437.9,2.90874]
[1721585396087,0.07270806,3439.5,3438.2,2.90849]
[1721585396241,2.98010385,3439.5,3437.8,2.90883]
[1721585396458,0.02763421,3439.4,3437.7,2.3023]
[1721585396735,2.90815,3438.7,3437.7,2.3023]
[1721585396957,0.07272249,3438.6,3437.7,2.3023]
[1721585397098,0.07272249,3438.6,3435.5,2.3023]
[1721585397099,2.98094249,3438.6,3435.5,2.3023]
[1721585397300,3.0,3439.7,3437.0,2.90943]
[1721585397301,0.02763421,3438.5,3437.0,2.90943]
[1721585397505,0.02763421,3438.5,3437.1,2.3023]
[1721585397506,0.07272387,3438.4,3437.1,2.3023]
[1721585397821,0.02763421,3438.5,3437.5,2.90907]
[1721585398155,0.02763421,3438.5,3437.1,2.3023]
[1721585398156,2.90776,3439.1,3437.6,2.90898]
[1721585398312,2.90807,3438.8,3437.1,2.3023]
[1721585398510,0.07272243,3438.7,3437.1,2.3023]
[1721585398711,0.07273004,3439.2,3437.1,2.3023]
[1721585398927,0.02776574,3438.6,3437.1,2.3023]
[1721585399130,0.0727217,3439.6,3438.1,2.90855]
[1721585399334,2.9800517,3439.6,3438.1,2.90855]
[1721585399539,2.9800517,3439.6,3437.1,2.3023]
[1721585399540,0.02776574,3439.5,3437.3,0.02431784]
[1721585399762,0.02776574,3439.5,3438.6,2.90814]
[1721585399901,0.02776574,3439.5,3437.1,5.50349]
[1721585399902,0.12886671,3440.7,3438.4,0.02430774]
[1721585400230,0.02776574,3439.4,3439.3,5.81504]
[1721585400437,0.12886671,3440.7,3439.4,0.55]
[1721585400597,0.12886671,3440.7,3438.5,2.4839]
[1721585400598,2.90661,3440.5,3438.5,2.4839]